Cogmind - Beta 14 @@@ ROGUE MODE // 2024.11.14 @ 04:44:50 Player: Fangrelle Result: Destroyed by G-50 Soldier with Heavy Laser Performance ------------- Evolutions (3) 1500 Regions Visited (6) 1200 Robots Destroyed (137) 685 Value Destroyed (4552) 4552 Prototype IDs (31) 620 Alien Tech Used (0) 0 Bonus (786) 786 TOTAL SCORE: 9343 Bonus ------- High Alert Combat Kills 472 Follower Combat Kills 14 Aligned with FarCom 300 Cogmind --------- Core Integrity 0/700 Matter 206/300 Energy 100/100 System Corruption 0% Temperature Cool (9) Movement Core (1400) Ox27 Location -7/Factory Parts ------- > --- POWER (1) -------- (None) > --- PROPULSION (2) --- (None) > --- UTILITY (8) ------ Huge Storage Unit Advanced Visual Processing Unit Improved Signal Interpreter Advanced ECM Suite System Shield > --- WEAPON (2) ------- (None) > --- INVENTORY (25) --- Cryofiber Web Improved Heat Sink Improved Heat Sink High-capacity Matter Pod (0) Trap Scanner Advanced Targeting Computer Transmission Jammer System Shield System Shield System Shield System Restoration Module High-powered Tractor Beam Trap Reconfigurator Improved Datajack Remote Datajack Peak State ------------ > --- POWER ------------ Enhanced Nuclear Core > --- PROPULSION ------- Advanced Treads Advanced Treads > --- UTILITY ---------- Huge Storage Unit Trap Scanner Advanced Visual Processing Unit Hardened Medium Armor Plating Improved Shield Generator System Shield System Shield Trap Reconfigurator > --- WEAPON ----------- Gatling Laser Gatling Laser > --- INVENTORY -------- Improved Deuterium Engine Armored Treads Advanced Treads Advanced Treads Advanced Treads Cryofiber Web Improved Heat Sink High-capacity Matter Pod Improved Signal Interpreter Advanced Targeting Computer Advanced ECM Suite Light Armor Plating Improved Medium Armor Plating Improved Medium Armor Plating Hardlight Generator Hacking Suite Hacking Suite Hacking Suite High-powered Tractor Beam Gatling Laser Heavy Missile Launcher Precision Grenade Launcher Improved Datajack Greatsword [Rating: 56] Favorites ----------- Power Ion Engine Engine Ion Engine Power Core Enhanced Nuclear Core Propulsion Advanced Treads Treads Advanced Treads Leg Aluminum Leg Wheel Compact Wheel Flight Unit Improved VTOL Module Utility Hacking Suite Device Heat Sink Storage Huge Storage Unit Processor Advanced Visual Processing Unit Hackware Hacking Suite Protection Light Armor Plating Weapon Gatling Laser Energy Gun Gatling Laser Energy Cannon Advanced Beam Cannon Ballistic Gun Autogun Launcher Proton Missile Launcher Special Weapon Remote Datajack Slashing Weapon Greatsword Special Melee Weapon Datajack Build | -11 -10 -10 -10 -9 -8 -7 ------- Run | Yrd Mat Min Exi Min Mat Fac Slots Evolved 6 | . . . . . 4 2 Power . | . . . . . . . Propulsion . | . . . . . . . Utility 6 | . . . . . 4 2 Weapon . | . . . . . . . Parts Attached 165 | 4 20 . 1 . 64 76 Power 12 | . 3 . . . 6 3 Engine 9 | . 3 . . . 5 1 Core 3 | . . . . . 1 2 Reactor . | . . . . . . . Propulsion 20 | 2 1 . 1 . 11 5 Treads 17 | 2 . . . . 10 5 Leg 1 | . 1 . . . . . Wheel 1 | . . . 1 . . . Hover . | . . . . . . . Flight 1 | . . . . . 1 . Utility 86 | . 6 . . . 28 52 Device 35 | . 2 . . . 10 23 Storage 5 | . 2 . . . 1 2 Processor 8 | . 2 . . . 4 2 Hackware 7 | . . . . . 1 6 Protection 31 | . . . . . 12 19 Artifact . | . . . . . . . Weapon 47 | 2 10 . . . 19 16 Energy Gun 27 | 2 7 . . . 15 3 Energy Cannon 1 | . . . . . 1 . Ballistic Gun 1 | . . . . . . 1 Ballistic Cannon . | . . . . . . . Launcher 11 | . 3 . . . 1 7 Special Weapon 1 | . . . . . . 1 Impact Weapon . | . . . . . . . Slashing Weapon 5 | . . . . . 1 4 Piercing Weapon . | . . . . . . . Special Melee Weapon 1 | . . . . . 1 . Unidentified Prototypes 8 | . 1 . . . 4 3 Parts Lost 38 | . 3 . . . 11 24 Power 4 | . . . . . 1 3 Propulsion 7 | . 2 . . . 2 3 Utility 17 | . . . . . 6 11 Weapon 10 | . 1 . . . 2 7 Highest Loss Streak 7 | . 2 . . . 5 7 To Critical Strikes . | . . . . . . . Average Slot Usage (%) 91 | . 84 85 85 100 94 95 Engine 6 | . 14 14 14 14 4 1 Core 2 | . . . . . 3 5 Treads 10 | . 3 . . . 16 13 Leg 4 | . 10 14 14 14 . . Device 8 | . 8 14 14 14 8 6 Storage 10 | . 14 14 14 14 9 7 Processor 9 | . 4 . . . 14 11 Hackware 11 | . . . . . 9 26 Protection 5 | . . . . . 9 6 Energy Gun 18 | . 27 28 28 28 15 10 Peak Build Rating 56 | 6 12 12 15 15 44 56 Average Rating 30 | 5 9 12 13 15 33 47 On Entrance 14 | 6 6 12 12 15 15 37 Naked Turns . | . . . . . . . Heaviest Build 119 | 11 52 52 52 52 100 119 Greatest Support 44 | 40 40 10 16 16 44 44 Greatest Overweight (x) 37 | . 9 5 5 3 15 37 Average Overweight (x) 2 | . 3 5 4 3 1 2 Largest Inventory Capacity 25 | 8 20 20 20 20 25 25 Average Capacity 21 | 8 17 20 20 20 22 25 Most Carried 25 | 6 15 15 20 19 25 25 Average Carried 19 | 4 10 15 18 19 20 23 Final Capacity 25 | 8 20 20 20 20 25 25 Final Carried 25 | 3 15 15 19 19 25 15 Class Distribution -------------------- 42% | Mutant 30% | Hacker-Mutant 19% | Skirmisher 3% | Scavenger-Mutant Dominant Class ---------------- Mutant | -10/Materials Mutant | -10/Mines Mutant | -10/Exiles Mutant | -9/Mines Skirmisher | -8/Materials Hacker-Mutant | -7/Factory Resources | -11 -10 -10 -10 -9 -8 -7 ----------- Run | Yrd Mat Min Exi Min Mat Fac Matter Collected 2216 | 200 265 . 10 . 637 1104 Remotely . | . . . . . . . Salvage Created 4660 | . 806 119 . . 1349 2386 Parts 246 | . 48 10 . . 79 109 Haulers Intercepted 4 | . 1 . . . 2 1 Recyclers Shooed 1 | . . . . . . 1 Parts Field Recycled . | . . . . . . . Retrieved Matter . | . . . . . . . Parts Self-Destructed . | . . . . . . . Prevented . | . . . . . . . Kills | -11 -10 -10 -10 -9 -8 -7 ------- Run | Yrd Mat Min Exi Min Mat Fac Combat Hostiles Destroyed 98 | . 14 3 . . 33 48 Melee 6 | . . . . . 2 4 Guns 74 | . 14 3 . . 29 28 AOE 14 | . . . . . . 14 Classes Destroyed 17 | . 6 1 . . 3 7 Worker 10 | . 2 1 . . 2 5 Builder 3 | . 1 . . . 1 1 Tunneler 1 | . . . . . . 1 Hauler 4 | . 1 . . . 2 1 Recycler 2 | . . . . . . 2 Mechanic 2 | . . . . . . 2 Operator 6 | . 3 . . . 2 1 Watcher 11 | . 3 . . . 5 3 Swarmer 17 | . . 1 . . 13 3 Grunt 46 | . 14 2 . . 10 20 Brawler 2 | . . . . . . 2 Duelist 1 | . . . . . . 1 Protector 1 | . . . . . . 1 Sentry 12 | . . . . . 8 4 Hunter 8 | . . . . . 1 7 Programmer 10 | . . . . . . 10 Heavy 1 | . . . . . 1 . Best Kill Streak 9 | . 4 2 . . 4 9 Combat Bots Only 8 | . 2 2 . . 4 8 Max Kills in Single Turn 3 | . 1 1 . . 2 3 Gunslinging 1 | . . . . . 1 . Exploded 3 | . . . . . . 3 Melee 1 | . . . . . 1 1 Uniques/NPCs Destroyed . | . . . . . . . Combat | -11 -10 -10 -10 -9 -8 -7 -------- Run | Yrd Mat Min Exi Min Mat Fac Hostile Shots Fired 905 | . 97 13 . . 250 545 Missed 281 | . 27 3 . . 62 189 Damage Taken 8516 | . 884 76 . . 3016 4540 Core 1392 | . 204 30 . . 440 718 Absorbed by Shields 356 | . . . . . . 356 Ignored by Resistances 38 | . . . . . 38 . Regen/Repaired (Parts) 610 | . . . . . 342 268 Core Remaining (%) 42 | 100 . . . 6 20 . Volleys Fired 336 | . 87 8 . . 92 149 Largest 2 | . 2 2 . . 2 2 Hottest 160 | . 112 112 . . 160 160 Shots Fired 586 | . 170 16 . . 156 244 Gun 543 | . 167 16 . . 156 204 Cannon . | . . . . . . . Launcher 40 | . 3 . . . . 37 Special 3 | . . . . . . 3 Kinetic 15 | . . . . . . 15 Thermal 497 | . 136 16 . . 156 189 Explosive 21 | . 3 . . . . 18 Electromagnetic 50 | . 31 . . . . 19 Robot Hit Streak 23 | . 11 5 . . 22 23 Robot Miss Streak 7 | . 4 3 . . 7 6 Penetration Max . | . . . . . . . Secondary Targets 6 | . 4 . . . 2 . Max Gunslinging Chain 1 | . 1 . . . 1 . Shots Hit Robots 446 | . 103 8 . . 133 202 Core Hits 304 | . 40 5 . . 86 173 Critical Kills . | . . . . . . . Critical Parts Destroyed . | . . . . . . . Critical Strikes 9 | . 2 . . . 5 2 Burn 4 | . 1 . . . 3 . Corrupt 1 | . 1 . . . . . Sever 4 | . . . . . 2 2 Melee Attacks 31 | . . . . . 17 14 Impact . | . . . . . . . Slashing 31 | . . . . . 17 14 Piercing . | . . . . . . . Sneak Attacks 3 | . . . . . 2 1 Combat Hostiles . | . . . . . . . Follow-up Attacks . | . . . . . . . Damage Inflicted 11738 | . 1603 139 . . 3250 6746 Guns 7979 | . 1404 139 . . 2662 3774 Cannons . | . . . . . . . Explosions 2687 | . 198 . . . . 2489 Melee 1035 | . . . . . 553 482 Ramming 37 | . 1 . . . 35 1 Kinetic 107 | . . . . . . 107 Thermal 7725 | . 1257 139 . . 2662 3667 Explosive 1808 | . 51 . . . . 1757 Electromagnetic 1026 | . 294 . . . . 732 Impact . | . . . . . . . Slashing 1035 | . . . . . 553 482 Piercing . | . . . . . . . Highest Corruption 2 | . . . . . . 2 Average Corruption 1 | . . . . . . 1 Corruption Purged 5 | . . . . . . 5 Corruption Blocked . | . . . . . . . Effects 17 | . . . . . . 17 Message Errors 2 | . . . . . . 2 Matter Fused 6 | . . . . . . 6 Heat Flow Errors 1 | . . . . . . 1 Energy Discharges 4 | . . . . . . 4 Data Loss (minor) 3 | . . . . . . 3 Data Loss (major) 1 | . . . . . . 1 Overload Shots . | . . . . . . . Overflow Damage 62 | . 10 . . . 12 40 Projectiles . | . . . . . . . Explosions 10 | . 10 . . . . . Melee 52 | . . . . . 12 40 Knockbacks . | . . . . . . . Impact . | . . . . . . . Kinetic . | . . . . . . . Secondary . | . . . . . . . Self-Inflicted Damage 174 | . 18 . . . . 156 Shots 8 | . 1 . . . . 7 Rammed 7 | . . . . . 6 1 Targets Rammed 9 | . 1 . . . 7 1 Kicked 1 | . 1 . . . . . Crushed 1 | . . . . . 1 . Highest Temperature 493 | . 342 63 . . 488 493 Average Temperature 126 | . 97 28 . . 129 142 Received Heat Transfer 3213 | . 486 . . . 1152 1575 Effects 30 | . 1 . . . 10 19 Shutdowns 4 | . 1 . . . 1 2 Energy Bleed 9 | . . . . . 4 5 Interference 8 | . . . . . 4 4 Matter Decay 3 | . . . . . . 3 Short Circuit 5 | . . . . . 1 4 Damage (minor) 1 | . . . . . . 1 Siege Activations . | . . . . . . . Robots Corrupted . | . . . . . . . Combat Hostiles . | . . . . . . . Parts Fried 2 | . 1 . . . . 1 Impact Corruptions . | . . . . . . . Robots Melted 4 | . . . . . 2 2 Combat Hostiles 4 | . . . . . 2 2 Parts Melted 51 | . 1 1 . . 22 27 Heat Transferred 17021 | . 2852 296 . . 6212 7661 Parts Sabotaged . | . . . . . . . Parts Stolen . | . . . . . . . Parts Stripped . | . . . . . . . Power Chain Reactions 4 | . 3 . . . . 1 Alert | -11 -10 -10 -10 -9 -8 -7 ------- Run | Yrd Mat Min Exi Min Mat Fac Peak Influence 1024 | . 290 94 . . 326 1024 Initial 56 | . . 12 . . . 56 Average 197 | . 59 45 . . 92 372 Maximum Alert Level 3 | . 1 . . . 1 3 Low Security (%) 66 | 100 97 100 . 100 89 28 Level 1 16 | . 2 . . . 10 31 Level 2 10 | . . . . . . 26 Level 3 5 | . . . . . . 13 Level 4 . | . . . . . . . Level 5 . | . . . . . . . High Security . | . . . . . . . Max Security . | . . . . . . . Squads Dispatched 31 | . 4 . . . 3 24 Investigation 9 | . 1 . . . 1 7 Extermination 10 | . . . . . . 10 Reinforcement 6 | . 3 . . . 2 1 Assault 3 | . . . . . . 3 Garrison 3 | . . . . . . 3 Intercept . | . . . . . . . Searches Triggered . | . . . . . . . Construction Impeded . | . . . . . . . Haulers Reinforced . | . . . . . . . Active Scanning Responses . | . . . . . . . Cargo Convoy Interrupts . | . . . . . . . Stealth | -11 -10 -10 -10 -9 -8 -7 --------- Run | Yrd Mat Min Exi Min Mat Fac Distress Signals 6 | . 1 . . . 3 2 Communications Jammed . | . . . . . . . Distress Signals . | . . . . . . . Times Spotted 164 | . 28 8 . . 60 68 Peak Tracking Total 9 | . 3 3 . . 4 9 Tactical Retreats 7 | . 1 . . . 4 2 Traps | -11 -10 -10 -10 -9 -8 -7 ------- Run | Yrd Mat Min Exi Min Mat Fac Traps Triggered 2 | . . . . . 1 1 Indirectly . | . . . . . . . Trap Hack Attempts 8 | . . . . . 8 . Triggered . | . . . . . . . Disarmed 2 | . . . . . 2 . Reprogrammed . | . . . . . . . Reused 6 | . . . . . 1 5 Traps Reconfigurated 50 | . . . . . 17 33 Traps Extracted . | . . . . . . . Installed . | . . . . . . . Triggered 6 | . . . . . 1 5 Machines | -11 -10 -10 -10 -9 -8 -7 ---------- Run | Yrd Mat Min Exi Min Mat Fac Machines Disabled 1 | . . . . . . 1 Max in Single Turn 1 | . . . . . . 1 Garrison Access 2 | . . . . . 1 1 Machines Repaired . | . . . . . . . Machines Dismantled . | . . . . . . . Machines Sabotaged . | . . . . . . . Overloaded Fab Kills . | . . . . . . . Hacking | -11 -10 -10 -10 -9 -8 -7 --------- Run | Yrd Mat Min Exi Min Mat Fac Machines Accessed 43 | . 5 . 3 . 16 19 Terminals 24 | . 4 . . . 11 9 Fabricators 3 | . . . . . . 3 Repair Stations 4 | . . . . . 2 2 Recycling Units 4 | . 1 . . . . 3 Scanalyzers 2 | . . . . . 2 . Garrison Access 3 | . . . . . 1 2 Total Hacks 160 | . 21 . 15 . 66 58 Successful 105 | . 9 . 15 . 50 31 Failed 54 | . 12 . . . 15 27 Catastrophic 4 | . . . . . . 4 Database Lockouts 1 | . . . . . 1 . Manual 83 | . 19 . 1 . 39 24 Terminals 80 | . 18 . . . 38 24 Fabricators 13 | . . . . . . 13 Repair Stations 23 | . . . . . 15 8 Recycling Units 11 | . 3 . . . . 8 Scanalyzers 10 | . . . . . 10 . Garrison Access 8 | . . . . . 3 5 Terminal Hacks 23 | . . . 15 . 5 3 Record 14 | . . . 14 . . . Robot Analysis 1 | . . . . . 1 . Open DSF 3 | . . . . . . 3 Terminal Index 1 | . . . . . 1 . Alert Level 1 | . . . . . 1 . Unreport Threat 2 | . . . . . 2 . Derelict Proto ID Bank 1 | . . . 1 . . . Fabricator Hacks 7 | . . . . . . 7 Load Schematic 4 | . . . . . . 4 Build 3 | . . . . . . 3 Repair Station Hacks 17 | . . . . . 13 4 Scan Component 9 | . . . . . 7 2 Repair 8 | . . . . . 6 2 Recycling Unit Hacks 6 | . 2 . . . . 4 Report Inventory 4 | . 1 . . . . 3 Retrieve Components 2 | . 1 . . . . 1 Scanalyzer 10 | . . . . . 10 . Insert Component 4 | . . . . . 4 . Analyze 6 | . . . . . 6 . Garrison Access Hacks 3 | . . . . . 2 1 Seal Access 2 | . . . . . 1 1 Coupler Status 1 | . . . . . 1 . Unauthorized Hacks 39 | . 7 . . . 20 12 Terminals 35 | . 6 . . . 20 9 Assimilate 10 | . 2 . . . 6 2 Botnet 19 | . 3 . . . 11 5 Operators 3 | . 1 . . . 1 1 Skim 3 | . . . . . 2 1 Fabricators . | . . . . . . . Repair Stations . | . . . . . . . Recycling Units 4 | . 1 . . . . 3 Tunnel 4 | . 1 . . . . 3 Scanalyzers . | . . . . . . . Garrison Access . | . . . . . . . Data Cores Recovered 1 | . . . . . 1 . Used . | . . . . . . . Hacking Detections 33 | . 4 . . . 15 14 Full Trace Events 4 | . . . . . . 4 Feedback Events . | . . . . . . . Feedback Blocked . | . . . . . . . Robot Schematics Acquired . | . . . . . . . Robots Built . | . . . . . . . Authchips . | . . . . . . . Time . | . . . . . . . Total Robot Build Rating . | . . . . . . . Part Schematics Acquired 4 | . . . . . 4 . Parts Built 3 | . . . . . . 3 Authchips . | . . . . . . . Time 96 | . . . . . . 96 Total Part Build Rating 9 | . . . . . . 9 Parts Repaired 8 | . . . . . 6 2 Time 295 | . . . . . 246 49 Parts Recycled . | . . . . . . . Recycled Matter . | . . . . . . . Retrieved Matter . | . . . . . . . Retrieved Components 17 | . 7 . . . . 10 Parts Scanalyzed 4 | . . . . . 4 . Part Schematics Acquired 4 | . . . . . 4 . Parts Damaged . | . . . . . . . Bothacking | -11 -10 -10 -10 -9 -8 -7 ------------ Run | Yrd Mat Min Exi Min Mat Fac Used RIF Installer . | . . . . . . . Robots Hacked 2 | . . . . . . 2 Non-combat 1 | . . . . . . 1 Combat 1 | . . . . . . 1 Robot Hacks Applied 2 | . . . . . . 2 parse_system 1 | . . . . . . 1 no_distress 1 | . . . . . . 1 Relay Couplers Released . | . . . . . . . Fabnet Peak Effective % . | . . . . . . . Robots Rewired 1 | . . . . . . 1 Allies Hacked . | . . . . . . . Hacks Repelled . | . . . . . . . Allies | -11 -10 -10 -10 -9 -8 -7 -------- Run | Yrd Mat Min Exi Min Mat Fac Total Allies 2 | . . 1 . . . 1 Largest Group 1 | . . 1 1 . . 1 Highest-Rated Group 31 | . . 31 31 . . 20 Highest-Rated Ally 31 | . . 31 31 . . 20 Total Orders 1 | . . . . . . 1 STAY 1 | . . . . . . 1 Ally Attacks 10 | . . 7 . . . 3 Total Damage 163 | . . 123 . . . 40 Kills 3 | . . 2 . . . 1 Allies Corrupted . | . . . . . . . Allies Melted . | . . . . . . . Intel | -11 -10 -10 -10 -9 -8 -7 ------- Run | Yrd Mat Min Exi Min Mat Fac Robot Analysis Total 1 | . . . . . 1 . Derelict Logs Recovered . | . . . . . . . Drone Launches . | . . . . . . . Drone Recoveries . | . . . . . . . Exploration | -11 -10 -10 -10 -9 -8 -7 ------------- Run | Yrd Mat Min Exi Min Mat Fac Turns Passed 18713 | 7 3555 795 2559 24 5156 6617 Spaces Moved 4967 | 1 854 165 588 17 1679 1663 Core 133 | . 111 . . . 1 21 Treads 3295 | 1 183 . . . 1469 1642 Legs 1248 | . 560 165 523 . . . Wheels 291 | . . . 65 17 209 . Hover . | . . . . . . . Flight . | . . . . . . . Fastest Speed 145 | 160 160 470 145 145 145 305 Average Speed 329 | 160 376 470 434 145 254 331 Slowest Speed 1900 | 160 500 470 470 145 800 1900 Overloaded Moves . | . . . . . . . Propulsion Burnouts . | . . . . . . . Robots Hopped . | . . . . . . . Cave-ins Triggered . | . . . . . . . Exploration Rate (%) 54 | 2 97 37 88 6 99 53 Regions Visited 6 Branch Regions 3 Pre-discovered Areas 6 | . 1 1 1 . . 3 Known Exits Taken . | . . . . . . . Unknown Exits Taken 6 | 1 1 1 1 1 1 . Scrap Searched . | . . . . . . . Spaces Dug 21 | . 21 . . . . . Terrain Destroyed 141 | . 33 . . . . 108 Melee . | . . . . . . . Projectile . | . . . . . . . AOE 141 | . 33 . . . . 108 Terrain Rammed . | . . . . . . . Walls Destroyed . | . . . . . . . Machines Disabled . | . . . . . . . Actions | -11 -10 -10 -10 -9 -8 -7 --------- Run | Yrd Mat Min Exi Min Mat Fac Total 6609 | 7 1021 172 595 16 2345 2453 Wait 885 | . 37 . . . 384 464 Move 4961 | . 853 164 587 16 1678 1663 Hop . | . . . . . . . Pick Up 93 | . 12 . 6 . 44 31 Fast Attach 43 | . 8 . . . 21 14 Attach 59 | 2 1 . 1 . 22 33 Detach 23 | . 1 . . . 6 16 Swap 65 | 2 11 . . . 22 30 Drop 93 | 3 10 . 1 . 44 35 Fire 336 | . 87 8 . . 92 149 Melee 31 | . . . . . 17 14 Ram 2 | . . . . . 1 1 Kick 1 | . 1 . . . . . Crush 6 | . . . . . 6 . Escape Stasis 2 | . . . . . . 2 Rewire 1 | . . . . . . 1 Trap 8 | . . . . . 8 . Miscellaneous . | . . . . . . . Route ------- -11/Scrapyard -10/Materials (discovered 4 exits: [*Mat x3] / [*Min]) -10/Mines -10/Exiles -9/Mines -8/Materials (discovered 3 exits: *Fac x3) -7/Factory (discovered 1 exit: *Fac) History --------- Turn | Location | Event 8 | -11/Scrapyard | Discovered new exit (range 0) 8 | -11/Scrapyard | Entered Materials 309 | -10/Materials | Build established: Mutant 531 | -10/Materials | Core integrity fell below 50% 614 | -10/Materials | Discovered new exit (range 7) 1243 | -10/Materials | Discovered new exit (range 9) 2222 | -10/Materials | Core integrity fell below 20% 2245 | -10/Materials | Discovered new exit (range 14) 2499 | -10/Materials | Discovered new exit (range 11) 3563 | -10/Materials | Entered Mines 3572 | -10/Mines | Escorted by a lone wolf Derelict 3592 | -10/Mines | Learned location of Storage (-7) 4335 | -10/Mines | Deemed a non-threat by the Exiles lab entrance 4335 | -10/Mines | Discovered new exit (range 5) 4358 | -10/Mines | Entered Exiles 4358 | -10/Exiles | Accompanied by 1 ally 4479 | -10/Exiles | Met 8R-AWN 4559 | -10/Exiles | Met EX-HEX 4723 | -10/Exiles | Met EX-BIN 4987 | -10/Exiles | Aligned with FarCom system 4991 | -10/Exiles | Given EX-Vault access code 5099 | -10/Exiles | Opened EX-Vault 5128 | -10/Exiles | Found Trap Reconfigurator 5227 | -10/Exiles | Warned to stay clear of 0b10 Research branches 5364 | -10/Exiles | Met EX-DEC 5534 | -10/Exiles | Visited The Gauntlet 6393 | -10/Exiles | Learned location of Zion (-6) 6902 | -10/Exiles | Discovered new exit (range 10) 6917 | -10/Exiles | Left Exiles lab with Trap Reconfigurator 6917 | -10/Exiles | Entered Mines 6932 | -9/Mines | Discovered new exit (range 6) 6941 | -9/Mines | Entered Materials 6941 | -8/Materials | Evolved 4 slots: Utility x4 7264 | -8/Materials | Build established: Scavenger-Mutant 7579 | -8/Materials | Discovered new exit (range 13) 7816 | -8/Materials | Build established: Mutant 8269 | -8/Materials | Build established: Assassin 8351 | -8/Materials | Core integrity fell below 50% 8495 | -8/Materials | Lost 5 parts (2n2u1w) 8696 | -8/Materials | Discovered new exit (range 14) 8969 | -8/Materials | Build established: Skirmisher 9106 | -8/Materials | Central database locked down 9836 | -8/Materials | Discovered new exit (range 20) 11314 | -8/Materials | Repaired Gatling Laser 11358 | -8/Materials | Repaired Gatling Laser 11397 | -8/Materials | Repaired Arm. Treads 11442 | -8/Materials | Repaired Gatling Laser 11482 | -8/Materials | Repaired Hacking Suite 11521 | -8/Materials | Repaired Adv. Treads 12097 | -8/Materials | Entered Factory 12097 | -7/Factory | Evolved 2 slots: Utility x2 12166 | -7/Factory | Discovered new exit (range 6) 12459 | -7/Factory | Fabricated System Shield (x1) 12680 | -7/Factory | Build established: Hacker-Mutant 13065 | -7/Factory | Build established: Mutant 13470 | -7/Factory | Build established: Hacker-Mutant 13785 | -7/Factory | Garrison activated, responded to threat 15903 | -7/Factory | Fabricated System Shield (x1) 16016 | -7/Factory | Identified exit to Factory 17340 | -7/Factory | Fabricated System Shield (x1) 17697 | -7/Factory | First assault squad dispatched 17866 | -7/Factory | Destroyed 8 combat bots 18303 | -7/Factory | Repaired Broken Imp. Shield Generator 18324 | -7/Factory | Repaired Hrd. Medium Armor Plating 18474 | -7/Factory | Core integrity fell below 50% 18703 | -7/Factory | Core integrity fell below 20% 18714 | -7/Factory | Destroyed by G-50 Soldier with Heavy Laser Last Messages --------------- 18677_ U-05 Engineer lays Concrete. 18679_ U-05 Engineer builds a Wall. 18682_ Critical hit (Burn: +37). 18683_ U-05 Engineer lays Concrete. 18684_ Acquired 53 matter. 18685_ U-05 Engineer lays Concrete. 18686_ Critical hit (Burn: +37). 18687_ U-05 Engineer lays Concrete. 18689_ The unstable cave ceiling collapses. 18689_ U-05 Engineer builds a Wall. 18689_ Hardlight Generator destroyed. 18693_ U-05 Engineer lays Concrete. 18700_ Critical hit (Burn: +37). 18700_ Slammed into G-47 Trooper. 18701_ Critical hit (Burn: +37). 18702_ Hrd. Medium Armor Plating destroyed. 18706_ U-05 Engineer lays Concrete. 18707_ Hacking Suite destroyed. 18707_ U-05 Engineer lays Concrete. 18713_ Critical hit (Burn: +37). Map ----- +----------------------------------------------------+ | ???# = #??????????????????????????????????? | | ???# =%! " #??####????????????????????????????? | | ???### #?? #????????????????????????????? | | ?????# *! #? #????????????????????????????? | | ??#### = % #? #????????????????????????????? | | ??# == ## #????????????????????????????? | | ??# [[ + #????????????????????????????? | | ??# [ * " #????????????????????????????? | | ??# ###""""""" " ! #????????????????????????????? | | ??# ##" [%" " #????????????????????????????? | | ###+##" %! "##???????????????????????????????? | | ^^ !" " ""#####???????????????????????????? | | ^ ! ^ " " #???????????????????????????? | | !! " """#### #???????????????????????????? | | / !! # " ##??# ########????????????????????? | | #######"#"""""###### # !#????????????????????? | | ???# #######T # # """ #????????????????????? | | ???# # # """ #???#????????????????? | | ???# + + """ !#?? #????????????????? | | ???# " "" # # #? #????????????????? | | ???# "R"" # # ! #% "####?????????????? | | ???# """ # ## %+ ??????????????? | | ???######## ### ####### #????????????????? | | ??????????# # ## ## #????????????????? | | ??????????# ######% * g % #"R ! ????????? | | ??????????# @g """ ??????????? | | ??????????############ ug "" ????????? | | ???????????????# i # ???????? | | ???????????????######## # # ###????#####???????? | | ???????????????????# ### ##??????????????????? | | | | | | | | | | | | | | | | | | | | | | | | | | | | | | | | | | | | | | | | | +----------------------------------------------------+ Best States ------------- Heat Dissipation 62 Energy Generation 18 Energy Capacity 310 Matter Stores 300 Matter Capacity 300 Sight Range 20 Terrain Scan Density 10 ECM Strength 2 Base Temperature (-) 100 Armor Coverage 750 Resistance: KI 20 Evasion (%) 40 Targeting Accuracy 6 Recoil Reduction 2 Offensive Hacking 30 Defensive Hacking 20 Item Schematics ----------------- Targeting Computer | -8/Materials | Scanalyzed System Shield | -8/Materials | Scanalyzed Gatling Laser | -8/Materials | Scanalyzed Arm. Treads | -8/Materials | Scanalyzed Robot Schematics ------------------ None Fabricated ------------ System Shield | x1 | -7/Factory System Shield | x1 | -7/Factory System Shield | x1 | -7/Factory Alien Tech Used ----------------- None Achievements -------------- None Challenges ------------ None Game ------ Seed PulseForceTrident Manual? 0 Play Time 01:22:55 Cumulative 68.8 hours Start 2024.11.14 @ 03:22:45 End 2024.11.14 @ 04:44:50 Sessions 1 Manual Loads 0 Difficulty Rogue Special Mode None Game No. 115 Rogue 115 Adventurer 0 Explorer 0 Win Type - Total 0 Types 0/0/0/0/0/0/0/0/0 Lore% 40 Gallery% 35 Achievement% 34 Wizard Run 0 Options --------- Layout 0 ASCII 0 Keyboard 0 Movement Mouse Keybinds 0 Fullscreen 1 Font 24/Smallcaps Map View 91x25 Zoom Use 92% Tactical HUD 1 Map Filters NONE Filters NONE Steam 1 RUN: 08038b09-a4a0-444c-86b5-14587a0dd0df